Cogmind - Beta 15 @@@ ROGUE MODE // 2025.08.28 @ 16:05:53 Player: winnking222 Result: Destroyed by OP-Z2U(R) with Subdweller Machine Gun Performance ------------- Evolutions (0) 0 Regions Visited (2) 400 Robots Destroyed (27) 135 Value Destroyed (586) 586 Prototype IDs (11) 220 Alien Tech Used (0) 0 Bonus (0) 0 TOTAL SCORE: 1341 Bonus ------- None Cogmind --------- Core Integrity 0/250 Matter 270/300 Energy 12/100 System Corruption 0% Temperature Cool (0) Movement Rolling (130) Ox2 Location -10/Subcaves Parts ------- > --- POWER (1) -------- (None) > --- PROPULSION (2) --- Light Treads Compact Wheel > --- UTILITY (2) ------ High-capacity Storage Unit > --- WEAPON (2) ------- Heavy Riot Gun Medium Laser > --- INVENTORY (20) --- Heat Sink Improved Heat Sink High-capacity Matter Pod (200) Scrap Shield EM Pulse Gun Assault Rifle Makeshift Spear Shrapnel Trap Peak State ------------ > --- POWER ------------ Ion Engine > --- PROPULSION ------- Light Treads Compact Wheel > --- UTILITY ---------- High-capacity Storage Unit Seismic Detector > --- WEAPON ----------- Heavy Riot Gun Makeshift Spear > --- INVENTORY -------- Heat Sink Improved Heat Sink High-capacity Matter Pod Scrap Shield EM Pulse Gun Medium Laser Assault Rifle Shrapnel Trap [Rating: 14] Favorites ----------- Power Ion Engine Engine Ion Engine Propulsion Light Treads Treads Light Treads Leg Aluminum Leg Wheel Compact Wheel Utility High-capacity Storage Unit Device Improved Heat Sink Storage High-capacity Storage Unit Weapon Medium Laser Energy Gun Medium Laser Ballistic Gun Assault Rifle Piercing Weapon Makeshift Spear Build | -11 -10 -10 ------- Run | Yrd Mat Sub Slots Evolved . | . . . Power . | . . . Propulsion . | . . . Utility . | . . . Weapon . | . . . Parts Attached 22 | 7 10 5 Power 3 | 1 2 . Engine 3 | 1 2 . Core . | . . . Reactor . | . . . Propulsion 6 | 2 2 2 Treads 3 | . 2 1 Leg 2 | 2 . . Wheel 1 | . . 1 Hover . | . . . Flight . | . . . Utility 6 | 2 3 1 Device 4 | 1 2 1 Storage 2 | 1 1 . Processor . | . . . Hackware . | . . . Protection . | . . . Artifact . | . . . Weapon 7 | 2 3 2 Energy Gun 4 | . 3 1 Energy Cannon . | . . . Ballistic Gun 2 | 2 . . Ballistic Cannon . | . . . Launcher . | . . . Special Weapon . | . . . Impact Weapon . | . . . Slashing Weapon . | . . . Piercing Weapon 1 | . . 1 Special Melee Weapon . | . . . Unidentified Prototypes . | . . . Parts Lost 9 | . 3 6 Power 2 | . 1 1 Propulsion 3 | . 1 2 Utility 2 | . . 2 Weapon 2 | . 1 1 Highest Loss Streak 4 | . 3 4 To Critical Strikes . | . . . Average Backups 7 | 5 7 7 Power . | 1 . . Propulsion 1 | 2 2 1 Utility 3 | . 3 4 Weapon 1 | 1 1 2 Tool/Special . | . . . Unused Backups 5 | . 2 3 Power . | . . . Propulsion 1 | . 1 . Utility 4 | . 1 3 Weapon . | . . . Tool/Special . | . . . Average Slot Usage (%) 99 | . 99 99 Engine 13 | . 13 13 Treads 24 | . 19 27 Leg 3 | . 8 . Device 14 | . 14 14 Storage 14 | . 14 14 Energy Gun 24 | . 18 28 Ballistic Gun 3 | . 9 . Peak Build Rating 14 | 7 9 14 Average Rating 8 | 5 8 8 On Entrance 5 | . 7 9 Naked Turns . | . . . Heaviest Build 50 | 15 50 50 Greatest Support 40 | 20 40 40 Greatest Overweight (x) 1 | . 1 1 Average Overweight (x) . | . . 1 Largest Inventory Capacity 20 | 8 20 20 Average Capacity 16 | 7 11 20 Most Carried 11 | 7 8 11 Average Carried 7 | 5 7 8 Final Capacity 20 | 8 20 20 Final Carried 9 | 6 8 9 Class Distribution -------------------- 100% | Mutant Dominant Class ---------------- Mutant | -10/Materials Mutant | -10/Subcaves Resources | -11 -10 -10 ----------- Run | Yrd Mat Sub Matter Collected 902 | 366 496 40 Remotely . | . . . Salvage Created 869 | 163 598 108 Parts 48 | 12 34 2 Haulers Intercepted 1 | . 1 . Recyclers Shooed 3 | 1 2 . Parts Field Recycled . | . . . Retrieved Matter . | . . . Parts Self-Destructed 12 | . . 12 Prevented . | . . . Kills | -11 -10 -10 ------- Run | Yrd Mat Sub Combat Hostiles Destroyed 18 | . 16 2 Guns 17 | . 15 2 Classes Destroyed 8 | 2 4 2 Tunneler 5 | 5 . . Hauler 1 | . 1 . Recycler 1 | 1 . . Watcher 2 | . 2 . Swarmer 6 | . 6 . Grunt 10 | . 10 . Sentry 1 | . . 1 Subdweller 1 | . . 1 Best Kill Streak 6 | 5 6 1 Combat Bots Only 4 | . 4 1 Max Kills in Single Turn 1 | 1 1 1 Gunslinging . | . . . Exploded . | . . . Melee . | . . . Uniques/NPCs Destroyed . | . . . Combat | -11 -10 -10 -------- Run | Yrd Mat Sub Hostile Shots Fired 123 | . 102 21 Missed 30 | . 27 3 Hits 93 | . 75 18 Projectile 93 | . 75 18 Critical Strikes 2 | . . 2 Damage Taken 1281 | . 821 460 Core 256 | . 160 96 Absorbed by Shields . | . . . Core Remaining (%) 100 | 100 . . Volleys Fired 103 | 16 67 20 Largest 2 | 2 2 2 Hottest 110 | 40 100 110 Shots Fired 204 | 32 132 40 Gun 204 | 32 132 40 Cannon . | . . . Launcher . | . . . Special . | . . . Kinetic 105 | 32 73 . Thermal 88 | . 52 36 Explosive . | . . . Electromagnetic 11 | . 7 4 Robot Hit Streak 10 | 4 10 10 Robot Miss Streak 4 | 4 4 2 Penetration Max . | . . . Secondary Targets 3 | . 3 . Max Gunslinging Chain 1 | . 1 . Shots Hit Robots 117 | 16 82 19 Core Hits 44 | 7 32 5 Critical Kills 1 | 1 . . Critical Parts Destroyed . | . . . Critical Strikes 8 | 1 5 2 Burn 7 | . 5 2 Destroy 1 | 1 . . Melee Attacks 1 | . . 1 Impact . | . . . Slashing . | . . . Piercing 1 | . . 1 Sneak Attacks . | . . . Combat Hostiles . | . . . Follow-up Attacks . | . . . Damage Inflicted 1514 | 187 1060 267 Guns 1441 | 187 1057 197 Cannons . | . . . Explosions 70 | . . 70 Melee . | . . . Ramming 3 | . 3 . Kinetic 767 | 187 580 . Thermal 612 | . 393 219 Explosive . | . . . Electromagnetic 132 | . 84 48 Impact . | . . . Slashing . | . . . Piercing . | . . . Highest Corruption . | . . . Average Corruption . | . . . Corruption Purged . | . . . Corruption Blocked . | . . . Overload Shots . | . . . Overflow Damage . | . . . Projectiles . | . . . Explosions . | . . . Melee . | . . . Knockbacks . | . . . Impact . | . . . Kinetic . | . . . Secondary . | . . . Self-Inflicted Damage 60 | . . 60 Shots 1 | . . 1 Rammed 4 | . 4 . Targets Rammed 4 | . 4 . Kicked . | . . . Crushed . | . . . Highest Temperature 72 | . 72 3 Average Temperature 21 | . 21 3 Received Heat Transfer 405 | . 336 69 Siege Activations . | . . . Martial Activations . | . . . Shielding Activations . | . . . Robots Disrupted . | . . . Combat Hostiles . | . . . Robots Corrupted . | . . . Combat Hostiles . | . . . Parts Fried . | . . . Impact Corruptions . | . . . Robots Melted 1 | . 1 . Combat Hostiles 1 | . 1 . Parts Melted 6 | . 4 2 Heat Transferred 2159 | . 1517 642 Parts Sabotaged . | . . . Parts Stolen . | . . . Parts Stripped . | . . . Power Chain Reactions 1 | . . 1 Alert | -11 -10 -10 ------- Run | Yrd Mat Sub Maximum Alert Level . | . . . Low Security (%) 100 | 100 100 . Level 1 . | . . . Level 2 . | . . . Level 3 . | . . . Level 4 . | . . . Level 5 . | . . . High Security . | . . . Max Security . | . . . Peak Influence 117 | 15 117 . Initial . | . . . Average 44 | 2 51 . Influence Increases 472 | 30 422 20 Destroy 0b10 Robot/C 340 | . 320 20 Destroy 0b10 Robot/NC 45 | 30 15 . Destroy Leader 66 | . 66 . Successful Hack 21 | . 21 . Influence Decreases 472 | 30 375 67 Entered New Map 23 | . . 23 Time Decay 419 | 30 345 44 Lost Part 30 | . 30 . Squads Dispatched 2 | . 2 . Investigation 2 | . 2 . Extermination . | . . . Reinforcement . | . . . Assault . | . . . Garrison . | . . . Intercept . | . . . Searches Triggered . | . . . Construction Impeded . | . . . Haulers Reinforced . | . . . Active Scanning Responses . | . . . Cargo Convoy Interrupts . | . . . Stealth | -11 -10 -10 --------- Run | Yrd Mat Sub Distress Signals 3 | . 3 . Communications Jammed . | . . . Distress Signals . | . . . Times Spotted 30 | . 26 4 Peak Tracking Total 4 | . 4 1 Tactical Retreats . | . . . Traps | -11 -10 -10 ------- Run | Yrd Mat Sub Traps Triggered 3 | . 2 1 Indirectly . | . . . Trap Hack Attempts . | . . . Triggered . | . . . Disarmed . | . . . Reprogrammed . | . . . Reused . | . . . Traps Extracted . | . . . Installed . | . . . Triggered . | . . . Most Traps Carried 1 | . . 1 Machines | -11 -10 -10 ---------- Run | Yrd Mat Sub Machines Disabled . | . . . Max in Single Turn . | . . . Machines Repaired . | . . . Machines Dismantled . | . . . Machines Sabotaged . | . . . Overloaded Fab Kills . | . . . Hacking | -11 -10 -10 --------- Run | Yrd Mat Sub Machines Accessed 8 | . 7 1 Terminals 7 | . 7 . Fabricators . | . . . Repair Stations . | . . . Recycling Units . | . . . Scanalyzers . | . . . Garrison Access . | . . . Total Hacks 17 | . 16 1 Successful 12 | . 11 1 Failed 5 | . 5 . Catastrophic . | . . . Database Lockouts . | . . . Manual 16 | . 16 . Terminals 16 | . 16 . Fabricators . | . . . Repair Stations . | . . . Recycling Units . | . . . Scanalyzers . | . . . Garrison Access . | . . . Terminal Hacks 1 | . . 1 Proto ID Catalog 1 | . . 1 Fabricator Hacks . | . . . Repair Station Hacks . | . . . Recycling Unit Hacks . | . . . Scanalyzer . | . . . Garrison Access Hacks . | . . . Unauthorized Hacks 11 | . 11 . Terminals 11 | . 11 . Track 2 | . 2 . Botnet 4 | . 4 . Skim 5 | . 5 . Fabricators . | . . . Repair Stations . | . . . Recycling Units . | . . . Scanalyzers . | . . . Garrison Access . | . . . Data Cores Recovered . | . . . Used . | . . . Hacking Detections 4 | . 4 . Full Trace Events 1 | . 1 . Feedback Events . | . . . Feedback Blocked . | . . . Robot Schematics Acquired . | . . . Robots Built . | . . . Authchips . | . . . Time . | . . . Total Robot Build Rating . | . . . Part Schematics Acquired . | . . . Parts Built . | . . . Authchips . | . . . Time . | . . . Total Part Build Rating . | . . . Parts Repaired . | . . . Time . | . . . Parts Recycled . | . . . Recycled Matter . | . . . Retrieved Matter . | . . . Retrieved Components . | . . . Parts Scanalyzed . | . . . Part Schematics Acquired . | . . . Parts Damaged . | . . . Bothacking | -11 -10 -10 ------------ Run | Yrd Mat Sub Used RIF Installer . | . . . Robots Hacked . | . . . Non-combat . | . . . Combat . | . . . Robot Hacks Applied . | . . . Relay Couplers Released . | . . . Fabnet Peak Effective % . | . . . Robots Rewired . | . . . Allies Hacked . | . . . Hacks Repelled . | . . . Allies | -11 -10 -10 -------- Run | Yrd Mat Sub Total Allies . | . . . Largest Group . | . . . Highest-Rated Group . | . . . Highest-Rated Ally . | . . . Total Orders . | . . . Ally Attacks . | . . . Total Damage . | . . . Kills . | . . . Allies Corrupted . | . . . Allies Melted . | . . . Intel | -11 -10 -10 ------- Run | Yrd Mat Sub Active Infowar (turns) 1101 | 27 398 676 Seismic 1101 | 27 398 676 Robot Analysis Total . | . . . Derelict Logs Recovered 1 | . . 1 Drone Launches . | . . . Drone Recoveries . | . . . Exploration | -11 -10 -10 ------------- Run | Yrd Mat Sub Turns Passed 2673 | 167 939 1567 Spaces Moved 1113 | 92 400 621 Core 13 | 13 . . Treads 890 | . 269 621 Legs 210 | 79 131 . Wheels . | . . . Hover . | . . . Flight . | . . . Fastest Speed 50 | 50 120 240 Average Speed 201 | 110 163 240 Slowest Speed 240 | 120 240 240 Overloaded Moves . | . . . Propulsion Burnouts . | . . . Robots Hopped . | . . . Potential Cave-ins . | . . . Cave-ins Triggered . | . . . Exploration Rate (%) 38 | 4 80 31 Regions Visited 2 Branch Regions 1 Pre-discovered Areas 2 | . 1 1 Known Exits Taken 1 | . 1 . Unknown Exits Taken 1 | 1 . . Scrap Searched 3 | . . 3 Spaces Dug . | . . . Terrain Destroyed 9 | . . 9 Melee . | . . . Projectile . | . . . AOE 9 | . . 9 Terrain Rammed . | . . . Walls Destroyed . | . . . Machines Disabled . | . . . Actions | -11 -10 -10 --------- Run | Yrd Mat Sub Total 1332 | 124 553 655 Wait 58 | . 58 . Move 1111 | 91 399 621 Hop . | . . . Pick Up 23 | 10 9 4 Fast Attach 3 | 3 . . Attach 12 | 4 4 4 Detach . | . . . Swap 11 | . 6 5 Drop 6 | . 6 . Fire 103 | 16 67 20 Melee 1 | . . 1 Ram . | . . . Kick . | . . . Crush 4 | . 4 . Escape Stasis . | . . . Rewire . | . . . Trap . | . . . Miscellaneous . | . . . Route ------- -11/Scrapyard -10/Materials (discovered 5 exits: *Mat x3 / [*Min] / *Sub) -10/Subcaves (discovered 2 exits: [*Mat x2]) History --------- Turn | Location | Event 13 | -11/Scrapyard | Discovered new exit (range 15) 168 | -11/Scrapyard | Entered Materials 302 | -10/Materials | Build established: Mutant 389 | -10/Materials | Discovered new exit (range 9) 467 | -10/Materials | Lost 3 parts (1p1n1w) 482 | -10/Materials | Discovered new exit (range 3) 571 | -10/Materials | Core integrity fell below 50% 757 | -10/Materials | Discovered new exit (range 16) 803 | -10/Materials | Learned 2 Storage zone layouts 852 | -10/Materials | Identified exit to Materials 860 | -10/Materials | Identified exit to Subcaves 862 | -10/Materials | Learned Storage emergency access door positions 864 | -10/Materials | Learned location of Storage (-9) 865 | -10/Materials | Learned 4 Subcaves zone layouts 868 | -10/Materials | Derelicts attacked the area 1107 | -10/Materials | Entered Subcaves 1108 | -10/Subcaves | Approached by a straggling Scientist 1160 | -10/Subcaves | Learned location of Zion (-6) 1211 | -10/Subcaves | Discovered new exit (range 14) 1642 | -10/Subcaves | Visited 4L-MR0's lab 2022 | -10/Subcaves | Discovered new exit (range 7) 2091 | -10/Subcaves | Disturbed a concealed Subdweller 2600 | -10/Subcaves | Shifting Twisted Machinery released Hvy. Riot Gun 2611 | -10/Subcaves | Shifting Twisted Machinery released Mak. Spear 2673 | -10/Subcaves | Core integrity fell below 20% 2674 | -10/Subcaves | Destroyed by OP-Z2U(R) with Subdweller Machine Gun Last Messages --------------- 02101_ Acquired 10 matter. 02104_ Acquired Scrap Shield. 02106_ Subatomizers dissect the Flamer. 02112_ Acquired Shrapnel Trap. PK-W0U(c): "I think it's somewhere northeast of here" 02212_ Triggered Shrapnel Trap. 02212_ An expanding cloud of shrapnel blasts out in all directions. 02212_ Seismic Detector destroyed. PK-W0U(c): "I think it's somewhere northeast of here" Hvy. Riot Gun falls loose from the Twisted Machinery. Mak. Spear falls loose from the Twisted Machinery. 02611_ Acquired Hvy. Riot Gun. 02622_ Acquired Mak. Spear. PK-W0U(c): "I think it's somewhere east of here" 02658_ Lgt. Treads destroyed. 02664_ Med. Laser destroyed. 02668_ Ion Engine destroyed. 02669_ OP-Z2U(R) suffers critical hit (Burn). 02672_ Seismic Detector destroyed. 02672_ Chain reaction triggered in Sub. Power Source. Map ----- +----------------------------------------------------+ | # ???????????????????????????????????????? | | #???????????????????????????????????????? | | ## #???????????????????????????????????????? | | #### "" ???????????????????????????????????????? | | ???## "" ???????????????????????????????????????? | | ????##" ???????????????????????????????????????? | | ?????## ???????????????????????????????????????? | | ??????####???????????????????????????????????????? | | ?###?#####???????????????????????????????????????? | | ?#"### ## ???????????????????????????????????????? | | ?????????????????????????????????????????????????? | | ?????????????????????????????????????????????????? | | ?????????????????????????????????????????????????? | | ?????????????????????????????????????????????????? | | ?????????????????????????????????????????????????? | | ?????????????????????????????????????????????????? | | ?????????????????????????????????????????????????? | | ?????????????????##??? ?????????????????????????? | | ?????????????????# ??#R#????????????????????????? | | ?????????????????? ?#""##??????????????????????? | | ??????????????????"" ##"""#??????????????????????? | | ??????????????????#"" """##?????????????????????? | | ???????????????????"""" ;###???????????????????? | | ?????????????????????" ; " ????????????????????? | | ????????????????# ""#;R ;#?????????????????????? | | ?????????????????# ""; @;#?????????????????????? | | ?????????????????# ""#;; ;#?????????????????????? | | ?????????????????????##"" #????##???????????????? | | ??????????????????????##"" ##??# ##??????????????? | | ???????????????????????##" ### #??????????????? | | ????????????????????????#"c ## #???????????????? | | ????????????????????????#" ##???????????????? | | ????????????????????????#"" #????????????????? | | ????????????????????????#""""" "#????????????????? | | ????????????????????????## """ "#####????????????? | | ????????????????????????##""" ## ##???????????? | | ????????????????????????#""" ##?# ##??????????? | | ????????????????????????#"" ####??# ##?????????? | | ???????????????????????## ####### ##????????? | | ???????????????????????# ## ##???????? | | ???????????????????????# # #?###???? | | ???????????????????????## ## ### ##??? | | ????????????????????????# ### #??? | | ????????????????????????###### ### #??? | | ???????????????????????????## ## ##??? | | ??????????????????????????## #???? | | ??????????????????????????# ## #???? | | ????????????????????????### ## #???? | | ??????????????????????### #####?? | | ?????????????????????## ## ## ##? | +----------------------------------------------------+ Best States ------------- Heat Dissipation 39 Energy Generation 10 Energy Capacity 250 Matter Stores 300 Matter Capacity 300 Sight Range 16 Terrain Scan Density 10 Evasion (%) 55 Recoil Reduction 2 Item Schematics ----------------- None Robot Schematics ------------------ None Fabricated ------------ Nothing Repaired ---------- Nothing Alien Tech Used ----------------- None Achievements -------------- None Challenges ------------ None Game ------ Seed WarlordNanofilamentsJets Manual? 0 Play Time 00:10:12 Cumulative 152.1 hours Start 2025.08.28 @ 15:56:02 End 2025.08.28 @ 16:05:53 Sessions 1 Manual Loads 0 Difficulty Rogue Special Mode None Game No. 216 Rogue 216 Adventurer 0 Explorer 0 Win Type - Total 1 Types 1/0/0/0/0/0/0/0/0/0 Lore% 71 Gallery% 64 Achievement% 55 Wizard Run 0 Options --------- Layout 0 ASCII 0 Keyboard 0 Movement Mouse Keybinds 0 Fullscreen 1 Font 16/SmallcapsGlow Map View 75x55 Zoom Use 0% Tactical HUD 1 Map Filters NONE Filters NONE Steam 1 RUN: 990f253d-eb9c-4e2b-952d-a2f80612a053